bitfinex-derivatives/quotes_ETHF0:USTF0_20241026
["timestamp","ask_amount","ask_price","bid_price","bid_amount"]
[1729923125089,3.28211587,2466.3,2465.7,0.4324]
[1729923125288,0.4448,2466.2,2465.7,0.83842]
[1729923125694,0.4448,2466.2,2465.3,4.26615507]
[1729923125695,2.84921587,2465.8,2465.3,4.26615507]
[1729923125886,4.9779,2465.7,2465.2,0.4061]
[1729923126091,0.91,2465.6,2465.3,1.28649]
[1729923126290,2.84921587,2465.5,2465.3,0.8804]
[1729923126493,0.91,2465.4,2465.3,1.28649]
[1729923126885,0.91,2465.4,2465.3,0.8804]
[1729923127090,0.91,2465.4,2465.3,1.28649]
[1729923127286,3.75921587,2465.5,2465.3,1.28649]
[1729923127886,3.75921587,2465.5,2465.4,0.40608]
[1729923128487,3.75921587,2465.5,2465.3,0.8804]
[1729923129498,3.75921587,2465.5,2465.4,0.40608]
[1729923129697,3.75921587,2465.5,2465.3,1.28648]
[1729923130102,3.75921587,2465.5,2465.3,0.4324]
[1729923130292,3.75921587,2465.5,2465.3,0.8754]
[1729923130801,0.91,2465.5,2465.3,1.28148]
[1729923131592,0.91,2465.5,2465.3,0.4324]
[1729923132098,3.75921587,2465.5,2465.2,0.4098]
[1729923133299,2.84921587,2465.3,2464.9,3.63524906]
[1729923133499,3.2078,2465.4,2464.5,1.05835507]
[1729923133500,3.2078,2466.0,2465.2,3.2078]
[1729923133698,3.26121587,2466.2,2465.8,0.406]
[1729923133897,3.26121587,2466.2,2465.5,3.2078]
[1729923133898,2.84921587,2466.0,2465.5,3.2078]
[1729923134097,2.84921587,2465.7,2465.5,3.2078]
[1729923134301,2.84921587,2465.7,2465.3,0.874]
[1729923134505,1.322,2465.6,2465.4,0.40607]
[1729923134803,1.322,2465.6,2465.3,1.28008]
[1729923135004,0.412,2465.6,2465.3,0.874]
[1729923135306,1.322,2465.6,2465.3,0.874]
[1729923135501,1.322,2465.6,2465.3,1.28009]
[1729923136203,1.322,2465.6,2465.3,0.874]
[1729923136401,1.322,2465.6,2465.3,1.28009]
[1729923137507,0.412,2465.6,2465.3,0.874]
[1729923137805,2.84921587,2465.7,2465.4,0.40607]
[1729923137806,3.75921587,2465.7,2465.4,0.40607]
[1729923138113,2.84921587,2465.5,2465.2,3.2078]
[1729923138910,0.4309,2465.4,2465.2,3.2078]
[1729923139905,0.4309,2465.4,2465.2,3.6139]
[1729923140104,0.91,2465.4,2465.3,0.8773]
[1729923140304,0.91,2465.4,2465.3,1.28339]
[1729923140611,0.4309,2465.7,2465.3,0.8773]
[1729923140816,0.911,2465.6,2465.4,0.83837]
[1729923141408,0.937,2465.5,2465.4,0.83837]
[1729923141611,0.937,2465.6,2465.4,0.83837]
[1729923142105,0.937,2465.6,2465.4,0.4323]
[1729923143802,0.937,2465.6,2465.4,0.83837]
[1729923145209,0.937,2465.6,2465.4,0.4323]
[1729923145409,0.937,2465.6,2465.5,0.40606]
[1729923147207,0.937,2465.6,2465.4,0.83837]
[1729923150214,0.937,2465.6,2465.4,0.4323]
[1729923150409,0.4398,2465.5,2465.3,1.28339]
[1729923151510,4.46208,2465.4,2465.2,3.2078]
[1729923151709,0.4466,2465.3,2465.0,1.27253]
[1729923152108,0.4466,2465.3,2465.0,0.8664]
[1729923153012,0.4466,2465.3,2464.7,3.2078]
[1729923153318,0.40612,2465.2,2464.7,3.2078]
[1729923153522,0.937,2465.1,2464.7,3.2078]
[1729923153714,1.3462,2465.1,2464.7,3.2078]
[1729923153911,1.3462,2465.1,2464.7,3.61398]
[1729923154323,0.4092,2465.1,2464.7,3.61398]
[1729923154506,0.4466,2465.3,2464.7,3.2078]
[1729923154817,0.937,2465.2,2465.0,0.40613]
[1729923155017,0.937,2465.2,2465.1,0.4104]
[1729923155712,3.2078,2465.4,2465.1,0.81652]
[1729923155713,0.937,2465.3,2465.1,0.81652]
[1729923155917,0.937,2465.3,2465.2,0.82751]
[1729923156220,0.937,2465.3,2465.2,0.8464]
[1729923156419,3.2078,2465.4,2465.2,1.25251]
[1729923156614,4.1448,2465.4,2465.2,1.25251]
[1729923157721,0.937,2465.4,2465.2,0.8464]
[1729923158321,0.937,2465.4,2465.1,0.4104]
[1729923158519,6.93591587,2465.5,2465.1,0.81652]
[1729923158726,0.937,2465.3,2465.1,0.81652]
[1729923159620,0.937,2465.3,2465.1,0.4104]
[1729923160013,0.937,2465.3,2465.1,0.81652]
[1729923164624,0.937,2465.3,2465.1,0.4104]
[1729923164826,0.937,2465.3,2465.1,0.81652]
[1729923165821,4.0568,2465.2,2464.9,3.2078]
[1729923166124,3.78621587,2465.3,2464.9,3.2078]
[1729923166327,0.436,2465.1,2464.9,3.2078]
[1729923167023,0.436,2465.1,2464.8,1.2787]
[1729923167417,0.4276,2465.0,2464.5,4.88751]
[1729923167731,0.4206,2464.9,2464.5,4.88752]
[1729923167924,0.937,2464.8,2464.5,4.88752]
[1729923168228,0.937,2464.8,2464.6,0.4062]
[1729923170320,0.937,2464.8,2464.5,3.6247]
[1729923170525,0.4383,2464.7,2464.5,3.6247]
[1729923170829,0.4383,2464.7,2464.3,0.40625]
[1729923171023,0.4319,2464.6,2464.3,0.40625]
[1729923171526,0.4319,2464.6,2464.4,0.40623]
[1729923171729,0.4383,2464.7,2464.4,0.40623]
[1729923171931,0.4383,2464.7,2464.5,0.8481]
[1729923172230,0.4383,2464.7,2464.3,0.40625]
[1729923172426,0.4383,2464.7,2464.3,0.82065]
[1729923172634,0.4383,2464.7,2464.4,0.40624]
[1729923175427,3.27931587,2464.9,2464.3,0.4144]
[1729923175627,0.4301,2464.9,2464.7,0.40618]
[1729923175832,0.4486,2465.0,2464.8,0.8452]
[1729923176033,0.92,2464.9,2464.8,0.8452]
[1729923177532,3.2078,2465.1,2465.0,0.40614]
[1729923177727,0.92,2465.1,2464.9,0.40615]
[1729923178742,0.8768,2465.2,2464.9,0.40616]
[1729923179041,0.8768,2465.2,2464.9,0.40615]
[1729923179042,0.92,2465.1,2464.9,0.40615]
[1729923179244,0.92,2465.1,2464.8,1.274]
[1729923179429,0.92,2465.1,2464.9,0.40615]
[1729923179628,0.92,2465.1,2464.8,1.274]
[1729923179837,0.92,2465.1,2465.0,0.40614]
[1729923181735,0.92,2465.1,2464.9,0.40614]
[1729923182040,0.92,2465.1,2465.0,0.40614]
[1729923183443,6.46309587,2465.4,2464.8,1.274]
[1729923183444,6.05701587,2465.4,2464.8,1.274]
[1729923184043,0.92,2465.3,2465.2,0.4061]
[1729923184240,3.76921587,2465.3,2464.8,1.274]
[1729923184434,0.4157,2465.2,2464.9,0.40614]
[1729923184744,0.4157,2465.2,2465.0,0.40614]
[1729923185743,0.92,2465.1,2464.9,0.40616]
[1729923186136,0.92,2465.1,2464.8,1.68017]
[1729923187044,0.92,2465.1,2464.9,0.40616]
[1729923187442,0.92,2465.1,2464.8,1.274]
[1729923187641,0.92,2465.1,2464.8,1.68017]
[1729923187841,0.92,2465.1,2464.9,0.40616]
[1729923188251,1.31680312,2465.0,2464.9,0.40616]
[1729923189148,1.31680312,2465.0,2464.8,2.59080312]
[1729923189149,1.31680312,2465.0,2464.8,1.68017]
[1729923189438,1.31680312,2464.9,2464.8,1.68017]
[1729923189636,1.31680312,2465.0,2464.8,2.99697312]
[1729923190541,1.31680312,2465.0,2464.8,1.274]
[1729923191037,1.31680312,2465.0,2464.8,1.68017]
[1729923191436,1.31680312,2464.9,2464.8,1.68017]
[1729923193848,1.31680312,2465.0,2464.8,1.68017]
[1729923194750,4.24294057,2465.7,2464.9,5.37360312]
[1729923194751,3.2078,2465.6,2464.9,5.37360312]
[1729923194951,3.2078,2465.6,2464.8,1.274]
[1729923194952,1.31680312,2465.3,2465.1,1.31680312]
[1729923195249,1.31680312,2465.3,2465.2,1.2879]
[1729923195752,1.31680312,2465.3,2465.2,1.69401]
[1729923195952,1.31680312,2465.3,2465.2,1.2879]
[1729923196151,1.31680312,2465.3,2465.2,1.69401]
[1729923196348,2.23680312,2465.3,2465.2,1.69401]
[1729923196653,2.23680312,2465.5,2465.3,0.40609]
[1729923196842,1.31680312,2465.5,2465.4,1.72288312]
[1729923197452,2.63360624,2465.5,2465.0,4.93073312]
[1729923197748,1.31680312,2465.2,2465.1,1.3071]
[1729923198148,1.31680312,2465.2,2465.0,4.93073312]
[1729923198149,1.31680312,2465.2,2465.0,3.2078]
[1729923198455,1.31680312,2465.2,2465.0,1.72294312]
[1729923198856,0.4145,2465.4,2465.2,0.4061]
[1729923198857,1.31680312,2465.3,2465.2,0.4061]
[1729923199047,1.31680312,2465.3,2465.1,1.72292312]
[1729923199252,1.31680312,2465.2,2465.1,1.72292312]
[1729923200353,1.3345,2465.4,2465.1,0.40612]
[1729923201152,1.3345,2465.4,2465.0,3.2078]
[1729923201556,0.4142,2465.3,2465.0,3.2078]
[1729923201758,0.4142,2465.3,2465.0,3.61393]
[1729923201959,1.3345,2465.4,2465.1,0.40611]
[1729923202160,1.3345,2465.4,2465.1,0.40612]
[1729923202755,1.3335,2465.4,2465.1,0.40612]
[1729923203359,1.3335,2465.4,2465.0,3.2078]
[1729923203558,1.3335,2465.4,2465.1,0.40612]
[1729923205359,1.3335,2465.4,2465.0,3.2078]
[1729923205564,1.3335,2465.4,2465.1,0.40612]
[1729923206755,1.3335,2465.4,2465.0,3.2078]
[1729923206962,1.3335,2465.4,2465.2,0.4061]
[1729923208160,1.3335,2465.4,2465.3,0.4247]
[1729923208571,3.2078,2466.0,2465.5,0.40604]
[1729923208868,1.3264,2466.0,2465.6,0.81684]
[1729923209071,1.3264,2466.0,2465.8,0.40601]
[1729923209265,0.8827,2466.0,2465.7,0.4367]
[1729923209469,0.919,2465.9,2465.7,0.84272]
[1729923210367,0.919,2465.9,2465.7,0.4367]
[1729923211370,0.919,2465.9,2465.7,0.84272]
[1729923211572,0.919,2465.9,2465.7,0.4367]
[1729923215479,0.8827,2466.2,2465.7,0.4367]
[1729923215778,0.919,2466.0,2465.8,0.406]
[1729923216070,0.919,2466.0,2465.9,0.40599]
[1729923219071,0.8827,2466.2,2465.9,0.40599]
[1729923219374,0.919,2466.1,2465.9,3.61379]
[1729923219674,0.919,2466.1,2466.0,0.4142]
[1729923219882,0.8827,2466.2,2466.0,0.4142]
[1729923220176,0.919,2466.3,2466.2,0.40594]
[1729923220372,0.919,2466.3,2466.2,1.72202695]
[1729923220568,0.919,2466.3,2466.2,1.73588695]
[1729923224684,0.919,2466.4,2466.2,2.14181695]
[1729923224981,0.919,2466.4,2466.3,1.31608695]
[1729923225981,0.919,2466.4,2466.2,1.73588695]
[1729923226176,0.919,2466.4,2466.2,2.14182695]
[1729923226376,0.919,2466.5,2466.3,1.72200695]
[1729923226576,0.919,2466.5,2466.4,1.73798695]
[1729923227279,0.919,2466.5,2466.4,2.14389695]
[1729923227474,0.919,2466.5,2466.4,1.73798695]
[1729923229175,0.4505,2466.6,2466.4,1.73798695]
[1729923229176,1.3685,2466.6,2466.4,1.73798695]
[1729923229371,1.3685,2466.6,2466.4,2.14388695]
[1729923229576,0.918,2466.6,2466.5,1.76058695]
[1729923231392,1.73418695,2466.7,2466.5,1.76058695]
[1729923231581,0.907,2466.6,2466.5,2.16647695]
[1729923232487,0.907,2466.7,2466.6,0.40588]
[1729923232691,0.907,2466.7,2466.6,1.72196695]
[1729923232881,0.907,2466.7,2466.6,2.15566695]
[1729923233083,0.4494,2466.8,2466.6,2.15566695]
[1729923233285,1.3564,2466.8,2466.7,1.72194695]
[1729923233588,0.907,2466.8,2466.7,1.72194695]
[1729923234487,0.907,2466.9,2466.7,1.72194695]
[1729923235278,2.22308695,2466.9,2466.7,1.31608695]
[1729923235684,2.22308695,2466.9,2466.7,1.72194695]
[1729923236688,2.22308695,2466.9,2466.7,1.31608695]
[1729923242088,0.907,2466.9,2466.8,1.31608695]
[1729923251394,0.907,2466.9,2466.8,1.72192695]
[1729923252194,1.3508,2467.0,2466.8,1.72192695]
[1729923252396,0.4486,2467.1,2466.9,1.72191695]
[1729923252599,4.1148,2467.2,2467.0,1.72188695]
[1729923252797,3.2078,2467.2,2467.1,1.31608695]
[1729923255000,0.907,2467.3,2467.1,1.31608695]
[1729923255195,5.36888695,2467.2,2466.4,3.2078]
[1729923255505,1.31608695,2466.8,2466.6,1.31608695]
[1729923255802,1.328,2466.7,2466.6,1.31608695]
[1729923264308,1.328,2466.7,2466.3,0.8771]
[1729923264616,0.891,2466.6,2466.5,1.31608695]
[1729923268516,0.891,2466.6,2466.5,1.72197695]
[1729923268716,0.891,2466.6,2466.5,1.31608695]
[1729923272827,3.2078,2467.1,2466.7,0.40585]
[1729923273029,3.6164,2467.1,2467.0,1.31608695]
[1729923273333,4.5074,2467.1,2467.0,1.31608695]
[1729923274422,4.0222,2467.1,2466.9,1.31608695]
[1729923274627,0.891,2467.0,2466.9,1.31608695]
[1729923283531,0.891,2467.0,2466.8,2.59648695]
[1729923284835,0.891,2467.0,2466.8,3.00232695]
[1729923285440,0.891,2467.0,2466.8,2.59648695]
[1729923287440,0.891,2467.0,2466.8,3.00232695]
[1729923290435,0.891,2467.0,2466.9,1.31608695]
[1729923295641,3.2078,2467.2,2466.9,1.31608695]
[1729923295849,3.2078,2467.2,2467.1,1.31608695]
[1729923296041,4.0958,2467.2,2467.1,1.31608695]
[1729923296248,4.0958,2467.2,2467.1,1.76548695]
[1729923298350,4.0948,2467.2,2467.1,1.76548695]
[1729923298843,3.2078,2467.2,2467.1,1.76548695]
[1729923299043,4.0948,2467.2,2467.1,2.17128695]
[1729923300642,0.887,2467.2,2467.1,2.17128695]
[1729923301355,0.887,2467.2,2467.1,1.76548695]
[1729923301746,0.887,2467.2,2467.1,2.17128695]
[1729923303356,0.887,2467.2,2467.1,1.76548695]
[1729923308458,0.887,2467.2,2467.1,2.17128695]
[1729923308661,3.2078,2467.4,2467.1,2.17127695]
[1729923308958,3.2078,2467.4,2467.3,1.31608695]
[1729923311157,1.2981,2467.5,2467.3,1.31608695]
[1729923311359,3.2078,2467.4,2467.3,1.31608695]
[1729923313259,0.887,2467.5,2467.3,1.31608695]
[1729923313466,3.2078,2467.4,2467.3,1.31608695]
[1729923314262,0.887,2467.5,2467.3,1.31608695]
[1729923314651,0.887,2467.5,2467.4,0.4326]
[1729923316266,0.887,2467.5,2467.4,2.15443695]
[1729923316768,0.887,2467.5,2467.4,1.74868695]
[1729923320959,0.453,2467.6,2467.4,1.74868695]
[1729923321264,0.453,2467.6,2467.5,1.31608695]
[1729923321465,1.34,2467.6,2467.5,1.31608695]
[1729923327362,2.65608695,2467.6,2466.8,3.2078]
[1729923327562,4.52388695,2467.3,2467.1,1.31608695]
[1729923327772,0.4127,2467.2,2467.1,1.31608695]
[1729923332169,1.2997,2467.2,2467.1,1.31608695]
[1729923341987,0.887,2467.2,2467.1,1.31608695]
[1729923342188,3.2078,2467.6,2467.1,5.36968695]
[1729923342384,0.887,2467.5,2467.4,0.40575]
[1729923342583,5.09254057,2467.9,2467.5,0.40573]
[1729923342584,0.887,2467.6,2467.5,0.40573]
[1729923342784,0.887,2467.6,2467.5,2.17391695]
[1729923342983,1.25526,2467.9,2467.5,2.17391695]
[1729923343183,0.887,2467.8,2467.6,0.40571]
[1729923343384,0.887,2467.7,2467.5,0.4521]
[1729923344386,0.887,2467.7,2467.6,1.31608695]
[1729923345693,0.887,2467.7,2467.5,0.4521]
[1729923345883,0.4443,2467.6,2467.5,0.4521]
[1729923346084,0.4443,2467.6,2467.4,0.4246]
[1729923346085,0.40573,2467.5,2467.4,0.4246]
[1729923346296,4.05782,2467.6,2467.5,1.31608695]
[1729923346795,8.11062,2467.6,2467.5,1.31608695]
[1729923347186,3.6521,2467.6,2467.4,0.4246]
[1729923347382,3.6521,2467.6,2467.5,1.31608695]
[1729923347789,4.05781,2467.6,2467.5,1.31608695]
[1729923348089,4.05781,2467.6,2467.4,1.74068695]
[1729923348295,3.6521,2467.6,2467.4,1.74068695]
[1729923349495,4.05781,2467.6,2467.4,1.74068695]
[1729923349897,3.6521,2467.6,2467.4,1.74068695]
[1729923350300,0.4443,2467.6,2467.4,1.74068695]
[1729923350500,3.6521,2467.6,2467.4,1.74068695]
[1729923351588,0.4443,2467.6,2467.4,1.74068695]
[1729923352200,3.6521,2467.6,2467.4,1.74068695]
[1729923352603,4.05782,2467.6,2467.4,1.74068695]
[1729923352995,3.6521,2467.6,2467.4,1.74068695]
[1729923353404,0.4443,2467.6,2467.4,1.74068695]
[1729923353904,3.6521,2467.6,2467.4,1.74068695]
[1729923354695,4.05782,2467.6,2467.4,0.4246]
[1729923354902,4.05782,2467.6,2467.4,1.74068695]
[1729923355495,3.6521,2467.6,2467.4,1.74068695]
[1729923356004,4.05782,2467.6,2467.4,1.74068695]
[1729923356703,4.49972,2467.6,2467.4,1.74068695]
[1729923359407,0.4058,2467.1,2466.7,0.40585]
[1729923359702,0.887,2467.0,2466.8,2.98482695]
[1729923359904,0.887,2466.9,2466.8,2.98482695]
[1729923360305,0.887,2466.9,2466.8,2.57898695]
[1729923360620,0.887,2466.9,2466.8,2.98482695]
[1729923361310,0.887,2466.9,2466.8,2.57898695]
[1729923365614,0.887,2466.9,2466.8,2.15368695]
[1729923374512,0.40585,2466.8,2466.4,3.6137]
[1729923374712,0.82375,2466.8,2466.6,1.31608695]
[1729923375220,0.4179,2466.8,2466.6,1.31608695]
[1729923375721,0.40586,2466.7,2466.6,1.31608695]
[1729923376720,2.56513695,2466.8,2466.6,1.31608695]
[1729923377917,1.31608695,2466.7,2466.5,0.8905]
[1729923378223,0.40588,2466.6,2466.5,0.8905]
[1729923378616,0.40588,2466.6,2466.5,2.20658695]
[1729923379210,5.36785695,2466.7,2466.5,2.20658695]
[1729923379415,0.40588,2466.6,2466.5,2.20658695]
[1729923381421,4.96198695,2466.7,2466.5,2.20658695]
[1729923381422,5.36785695,2466.7,2466.5,2.20658695]
[1729923381626,3.2078,2466.7,2466.6,1.31608695]
[1729923381824,4.0948,2466.7,2466.6,1.31608695]
[1729923385431,4.0948,2466.7,2466.6,1.72196695]
[1729923386134,1.31608695,2467.2,2466.8,0.40584]
[1729923386135,0.887,2467.0,2466.8,0.40584]
[1729923386331,0.887,2467.0,2466.9,2.62368695]
[1729923386726,0.887,2467.0,2466.9,3.02951695]
[1729923388137,0.887,2467.1,2466.9,2.62368695]
[1729923388339,0.887,2467.1,2467.0,1.31608695]
[1729923388535,0.887,2467.1,2467.0,1.72188695]
[1729923388838,4.05204,2467.5,2467.0,1.31608695]
[1729923388839,4.96238695,2467.5,2467.0,1.31608695]
[1729923389034,0.887,2467.4,2467.3,1.31608695]
[1729923389234,6.25588695,2467.4,2467.2,1.31608695]
[1729923389439,2.20308695,2467.4,2467.2,1.31608695]
[1729923391737,2.60883695,2467.4,2467.2,1.31608695]
[1729923392140,1.31608695,2467.3,2467.1,1.31608695]
[1729923392347,1.72186695,2467.2,2467.0,1.31608695]
[1729923392639,2.13926695,2467.2,2467.0,1.31608695]
[1729923393642,0.4174,2467.2,2467.0,1.31608695]
[1729923394140,1.73348695,2467.2,2467.0,1.31608695]
[1729923394735,0.4174,2467.2,2467.0,1.31608695]
[1729923394930,0.4174,2467.2,2467.1,1.31608695]
[1729923395641,9.87027695,2467.2,2466.7,0.40585]
[1729923395942,2.61738695,2467.1,2466.8,1.31608695]
[1729923396139,2.61738695,2467.1,2466.9,1.31608695]
[1729923396443,3.02318695,2467.1,2466.9,1.31608695]
[1729923396744,0.4393,2467.1,2467.0,1.31608695]
[1729923396941,1.3263,2467.1,2467.0,1.31608695]
[1729923399143,1.3263,2467.1,2466.9,2.16178695]
[1729923399346,1.7608,2467.1,2466.9,2.16178695]
[1729923400241,1.7608,2467.1,2467.0,1.31608695]
[1729923400650,1.3263,2467.1,2467.0,1.31608695]
[1729923401951,1.7321,2467.1,2466.9,0.8457]
[1729923402153,1.7321,2467.1,2466.9,0.4306]
[1729923402154,2.177,2467.1,2466.9,0.4306]
[1729923402452,0.4422,2467.0,2466.9,0.4306]
[1729923403551,1.7712,2467.1,2466.9,0.4306]
[1729923405648,1.31608695,2467.0,2466.9,0.4306]
[1729923406545,1.7712,2467.1,2466.9,0.4306]
[1729923407250,1.3263,2467.1,2466.9,0.4306]
[1729923408247,1.3263,2467.1,2467.0,0.4092]
[1729923411051,1.7321,2467.1,2467.0,0.4092]
[1729923411550,1.3263,2467.1,2467.0,0.4092]
[1729923418561,1.7321,2467.1,2467.0,0.4092]
[1729923420261,1.3263,2467.1,2467.0,0.4092]
[1729923420465,3.2078,2467.3,2467.0,0.4092]
[1729923420661,0.886,2467.2,2467.1,1.74798695]
[1729923421168,3.2078,2467.3,2467.1,1.74798695]
[1729923421367,3.2078,2467.3,2467.2,1.72186695]
[1729923421573,4.0938,2467.3,2467.2,1.31608695]
[1729923421960,4.0938,2467.3,2467.2,1.72186695]
[1729923422261,5.40988695,2467.3,2467.1,0.4319]
[1729923422468,5.40988695,2467.3,2467.0,0.4092]
[1729923422469,2.13896695,2467.2,2467.0,0.4092]
[1729923422762,1.31608695,2467.1,2467.0,0.4092]
[1729923424374,0.4171,2467.2,2467.0,1.72528695]
[1729923424566,1.73178695,2467.4,2467.1,1.31608695]
[1729923424866,0.886,2467.3,2467.1,1.31608695]
[1729923425567,0.886,2467.2,2467.1,1.72186695]
[1729923426168,0.886,2467.2,2467.1,5.77546695]
[1729923426356,0.886,2467.2,2467.1,5.36968695]
[1729923426561,0.886,2467.2,2467.1,5.77548695]
[1729923426758,1.73318695,2467.5,2467.1,5.36968695]
[1729923426965,3.2078,2467.6,2467.4,1.31608695]
[1729923427170,0.886,2467.8,2467.5,2.61868695]
[1729923427364,0.886,2467.8,2467.7,1.31608695]
[1729923427968,0.886,2467.8,2467.6,1.31608695]
[1729923428268,2.20208695,2467.8,2467.5,1.3026]
[1729923428471,0.886,2467.8,2467.7,1.31608695]
[1729923429974,0.886,2467.8,2467.7,1.72178695]
[1729923430365,0.886,2467.9,2467.8,0.40567]
[1729923430559,1.31608695,2468.1,2467.8,1.72175695]
[1729923430764,0.886,2468.0,2467.9,0.8466]
[1729923430971,0.886,2468.0,2467.9,1.2657]
[1729923431159,3.2078,2468.2,2467.9,6.63378695]
[1729923431469,0.886,2468.5,2468.1,1.31608695]
[1729923431667,0.886,2468.5,2468.3,1.31608695]
[1729923431885,0.886,2468.5,2468.4,2.57386695]
[1729923432166,0.886,2468.5,2468.4,2.16828695]
[1729923432365,0.886,2468.5,2468.4,0.8522]
[1729923432567,0.886,2468.5,2468.4,1.2634]
[1729923432964,0.40553,2468.7,2468.4,1.2634]
[1729923433271,0.886,2468.6,2468.4,1.2634]
[1729923434375,0.8317,2468.8,2468.4,1.2634]
[1729923434668,0.886,2468.6,2468.4,1.2634]
[1729923435169,0.886,2468.6,2468.4,1.66898]
[1729923435575,0.886,2468.6,2468.4,1.2634]
[1729923435769,1.23722,2468.8,2468.4,1.2634]
[1729923435967,1.3002,2468.8,2468.6,0.40555]
[1729923436162,3.2078,2469.0,2468.7,0.40552]
[1729923436367,0.886,2469.0,2468.8,0.8645]
[1729923436665,0.886,2469.0,2468.6,0.40554]
[1729923436975,1.3237,2469.0,2468.7,0.40553]
[1729923437170,1.3237,2469.0,2468.6,0.85484]
[1729923437375,1.3237,2469.0,2468.7,0.40553]
[1729923437869,1.3237,2469.0,2468.6,0.85485]
[1729923438263,1.3237,2469.0,2468.6,0.4493]
[1729923438464,0.84319,2469.0,2468.6,0.4493]
[1729923438661,0.886,2468.9,2468.6,0.4493]
[1729923440765,0.886,2468.9,2468.6,0.85485]
[1729923440965,0.886,2468.9,2468.6,0.4493]
[1729923441971,0.886,2468.9,2468.7,0.40553]
[1729923442173,0.886,2468.9,2468.6,0.85484]
[1729923442470,0.886,2468.9,2468.7,0.40553]
[1729923443077,0.40546,2469.2,2468.7,0.40553]
[1729923443278,0.886,2469.1,2468.8,0.4055]
[1729923443476,0.886,2469.1,2468.9,0.4193]
[1729923444067,4.49495,2469.3,2468.9,0.4193]
[1729923444273,0.886,2469.1,2468.9,0.4193]
[1729923445876,0.886,2469.1,2468.9,0.8655]
[1729923448777,0.886,2469.1,2468.9,1.271]
[1729923449078,0.886,2469.1,2468.9,0.8655]
[1729923450476,4.49494,2469.3,2468.9,0.8655]
[1729923450677,0.885,2469.2,2468.9,0.8655]
[1729923451487,1.29045,2469.2,2468.9,0.8655]
[1729923451784,0.885,2469.2,2468.9,0.8655]
[1729923452282,0.885,2469.2,2469.0,1.31473248]
[1729923455780,0.8817,2469.3,2469.1,1.31473248]
[1729923455982,3.2078,2469.6,2469.2,1.31473248]
[1729923456180,3.2078,2469.6,2469.5,1.31473248]
[1729923456386,4.0928,2469.6,2469.5,1.31473248]
[1729923456679,0.885,2469.6,2469.5,1.31473248]
[1729923459684,4.04224,2469.9,2469.5,1.72012248]
[1729923459887,4.5219,2469.9,2469.8,1.31473248]
[1729923460390,1.3141,2469.9,2469.8,1.31473248]
[1729923462291,1.3141,2469.9,2469.7,0.4411]
[1729923462794,1.3141,2469.9,2469.8,0.4424]
[1729923462795,0.4291,2469.9,2469.8,0.4424]
[1729923462995,1.3141,2469.9,2469.8,0.4424]
[1729923463299,0.885,2470.1,2469.8,0.4424]
[1729923463484,0.4204,2470.0,2469.8,0.4424]
[1729923464696,0.82572,2470.0,2469.8,0.4424]
[1729923464992,0.40534,2469.9,2469.8,0.4424]
[1729923466588,4.0928,2470.2,2469.8,4.4912]
[1729923466887,0.40534,2469.9,2469.8,0.8671]
[1729923467391,1.29033,2470.0,2469.8,0.8671]
[1729923467800,0.40534,2469.9,2469.8,0.8671]
[1729923468092,1.29033,2470.0,2469.8,0.8671]
[1729923469592,0.885,2470.0,2469.8,0.8671]
[1729923469895,1.29033,2470.0,2469.8,0.8671]
[1729923470193,0.40538,2469.7,2469.3,2.84789984]
[1729923470397,0.40538,2469.7,2469.4,0.427]
[1729923471193,0.40536,2469.8,2469.4,0.427]
[1729923471500,0.40536,2469.8,2469.5,2.84789984]
[1729923472691,1.3217,2469.9,2469.5,2.84789984]
[1729923473499,1.72705,2469.9,2469.5,2.84789984]
[1729923473890,3.2078,2470.1,2469.5,2.84789984]
[1729923474096,0.885,2469.9,2469.7,2.84789984]
[1729923474395,0.885,2469.9,2469.8,1.2679]
[1729923475096,3.2078,2470.1,2469.8,5.3167]
[1729923475296,3.2078,2470.1,2470.0,2.84789984]
[1729923475693,3.2078,2470.1,2470.0,6.89669984]
[1729923476295,3.2078,2470.1,2470.0,7.30201984]
[1729923477190,1.29026,2470.4,2470.0,6.89669984]
[1729923477501,3.2078,2470.2,2470.1,0.4428]
[1729923480096,0.4193,2470.6,2470.1,7.6986]
[1729923480302,0.40521,2470.7,2470.3,3.25315984]
[1729923480502,0.82301,2470.7,2470.4,0.8606]
[1729923480797,0.4178,2470.7,2470.4,0.8606]
[1729923481788,0.4178,2470.7,2470.4,1.26585]
[1729923482291,0.4178,2470.7,2470.4,1.26584]
[1729923482499,3.6511,2470.8,2470.4,1.26584]
[1729923482694,3.2078,2470.8,2470.6,2.84789984]
[1729923482895,3.2078,2470.8,2470.7,0.4372]
[1729923484298,3.2078,2470.8,2470.4,3.70849984]
[1729923484608,4.48619,2470.8,2470.4,4.11374984]
[1729923484802,4.48619,2470.8,2470.4,3.70849984]
[1729923485694,4.48619,2470.8,2470.4,4.11374984]
[1729923485892,1.3028,2470.9,2470.4,4.11374984]
[1729923486092,1.3028,2470.9,2470.6,2.84789984]
[1729923486393,1.70798,2470.9,2470.7,0.4084]
[1729923486593,1.70798,2470.9,2470.7,0.8294]
[1729923487198,0.40519,2470.8,2470.7,0.8294]
[1729923487502,0.81559,2470.8,2470.7,0.421]
[1729923487710,0.4052,2470.7,2470.6,2.84789984]
[1729923487900,0.4052,2470.7,2470.6,3.26889984]
[1729923489709,1.265,2470.8,2470.6,3.26889984]
[1729923490206,0.8598,2470.8,2470.6,3.26889984]
[1729923490405,0.4052,2470.7,2470.6,3.26889984]
[1729923491707,0.4052,2470.7,2470.6,2.84789984]
[1729923494001,0.40522,2470.6,2470.3,3.2078]